fUST/lending_fUST_20240910
["ID","MTS","AMOUNT","RATE_DAILY","PERIOD"]
[337711138,1725983439944,-46983.49595633,0.00017,2]
[337711139,1725983439953,-153.0,0.00017,2]
[337711140,1725983439963,-8869.46925062,0.00017006,2]
[337711141,1725983439972,-500.0,0.00017006,2]
[337711142,1725983439982,-248.975469,0.0001706,2]
[337711143,1725983439993,-153.0,0.00017078,2]
[337711144,1725983440005,-153.0,0.00017078,2]
[337711145,1725983440015,-150.112233,0.000171,2]
[337711146,1725983440025,-150.112234,0.000171,2]
[337711148,1725983440034,-208.3247076,0.000171,2]
[337711149,1725983440044,-208.3247076,0.000171,2]
[337711151,1725983440055,-208.3247076,0.000171,2]
[337711152,1725983440066,-153.0,0.000171,2]
[337711153,1725983440075,-415.6342027,0.000171,2]
[337711154,1725983440084,-153.0,0.000171,2]
[337711156,1725983440094,-153.0,0.000171,2]
[337711157,1725983440104,-153.0,0.000171,2]
[337711158,1725983440114,-153.0,0.000171,2]
[337711159,1725983440124,-153.0,0.000171,2]
[337711160,1725983440134,-8869.46925062,0.00017113,2]
[337711161,1725983440143,-3026.66115867,0.00017173,2]
[337711162,1725983440153,-150.0,0.00017195,2]
[337711163,1725983440164,-150.112233,0.000172,2]
[337711164,1725983440187,-8869.46925062,0.00017221,2]
[337711165,1725983440199,-500.0,0.00017221,2]
[337711167,1725983440210,-1700.87,0.0001727,2]
[337711169,1725983440221,-4037.07,0.0001727,2]
[337711171,1725983440231,-797.99,0.0001727,2]
[337711173,1725983440244,-927.79,0.0001727,2]
[337711174,1725983440257,-906.49,0.0001727,2]
[337711176,1725983440267,-820.39,0.0001727,2]
[337711178,1725983440277,-500.0,0.0001727,2]
[337711179,1725983440287,-5818.07,0.0001727,2]
[337711180,1725983440296,-2912.74,0.0001727,2]
[337711181,1725983440306,-685.97,0.0001727,2]
[337711182,1725983440316,-578.92,0.0001727,2]
[337711183,1725983440325,-500.0,0.0001727,2]
[337711184,1725983440334,-500.0,0.0001727,2]
[337711186,1725983440345,-500.0,0.0001727,2]
[337711188,1725983440355,-500.0,0.0001727,2]
[337711189,1725983440366,-571.01945787,0.0001727,2]
[337711190,1725983440376,-500.0,0.0001727,2]
[337711191,1725983440386,-500.0,0.0001727,2]
[337711192,1725983440397,-500.0,0.0001727,2]
[337711193,1725983440407,-500.0,0.0001727,2]
[337711194,1725983440417,-500.0,0.0001727,2]
[337711195,1725983440428,-237.27954317,0.0001727,2]
[337711196,1725983440439,-500.0,0.00017271,2]
[337711197,1725983440449,-500.0,0.00017271,2]
[337711198,1725983440459,-534.11170401,0.00017271,2]
[337711199,1725983440469,-522.80613809,0.00017271,2]
[337711200,1725983440479,-500.0,0.00017271,2]
[337711201,1725983440488,-500.0,0.00017271,2]
[337711202,1725983440499,-500.0,0.00017271,2]
[337711203,1725983440509,-500.0,0.00017271,2]
[337711204,1725983440519,-914.34,0.00017271,2]
[337711205,1725983440529,-500.0,0.00017271,2]
[337711206,1725983440539,-500.0,0.00017271,2]
[337711207,1725983440549,-500.0,0.00017271,2]
[337711208,1725983440559,-500.0,0.00017271,2]
[337711209,1725983440570,-1217.61,0.00017271,2]
[337711210,1725983440581,-500.0,0.00017271,2]
[337711211,1725983440590,-220.87,0.00017271,2]
[337711212,1725983440601,-500.0,0.00017271,2]
[337711213,1725983440611,-513.94186108,0.00017271,2]
[337711214,1725983440623,-179.57994494,0.00017271,2]
[337711215,1725983440633,-500.0,0.00017271,2]
[337711216,1725983440643,-500.0,0.00017271,2]
[337711217,1725983440652,-372.1353062,0.00017271,2]
[337711222,1725983440662,-500.0,0.00017271,2]
[337711223,1725983440825,-500.0,0.00017271,2]
[337711225,1725983440834,-500.0,0.00017271,2]
[337711227,1725983440844,-500.0,0.00017271,2]
[337711229,1725983440855,-520.88,0.00017271,2]
[337711230,1725983440865,-504.32,0.00017271,2]
[337711232,1725983440875,-577.07,0.00017271,2]
[337711234,1725983440884,-500.0,0.00017271,2]
[337711235,1725983440894,-500.0,0.00017271,2]
[337711237,1725983440905,-500.0,0.00017271,2]
[337711238,1725983440916,-500.0,0.00017271,2]
[337711240,1725983440927,-500.0,0.00017271,2]
[337711242,1725983440936,-568.03,0.00017271,2]
[337711243,1725983440946,-500.0,0.00017271,2]
[337711244,1725983440957,-500.0,0.00017271,2]
[337711245,1725983440967,-500.0,0.00017271,2]
[337711246,1725983440977,-500.0,0.00017271,2]
[337711247,1725983440986,-500.0,0.00017271,2]
[337711248,1725983440995,-500.0,0.00017271,2]
[337711249,1725983441012,-1238.75,0.00017271,2]
[337711250,1725983441022,-230.49514731,0.00017271,2]
[337711251,1725983441032,-500.0,0.00017272,2]
[337711252,1725983441042,-500.0,0.00017272,2]
[337711253,1725983441052,-500.0,0.00017272,2]
[337711254,1725983441062,-500.0,0.00017272,2]
[337711255,1725983441072,-500.0,0.00017272,2]
[337711256,1725983441082,-1340.19,0.00017272,2]
[337711257,1725983441091,-1188.6,0.00017272,2]
[337711258,1725983441102,-500.0,0.00017272,2]
[337711259,1725983441111,-500.0,0.00017272,2]
[337711260,1725983441121,-1678.18,0.00017272,2]
[337711261,1725983441131,-43710.51,0.00017272,2]
[337711262,1725983441142,-1566.5,0.00017272,2]
[337711263,1725983441152,-1935.05,0.00017272,2]
[337711264,1725983441164,-1689.45,0.00017272,2]
[337711265,1725983441174,-500.0,0.00017272,2]
[337711266,1725983441183,-716.99,0.00017272,2]
[337711267,1725983441193,-3850.92,0.00017272,2]
[337711268,1725983441202,-500.0,0.00017272,2]
[337711269,1725983441211,-500.0,0.00017272,2]
[337711270,1725983441221,-1669.89,0.00017272,2]
[337711271,1725983441230,-2994.79,0.00017272,2]
[337711272,1725983441240,-500.0,0.00017272,2]
[337711273,1725983441255,-500.0,0.00017272,2]
[337711274,1725983441267,-500.0,0.00017272,2]
[337711275,1725983441276,-500.0,0.00017272,2]
[337711276,1725983441285,-2865.48,0.00017272,2]
[337711277,1725983441295,-500.0,0.00017272,2]
[337711278,1725983441304,-500.0,0.00017272,2]
[337711279,1725983441315,-479.4004579,0.00017272,2]
[337711280,1725983441325,-500.0,0.00017272,2]
[337711281,1725983441335,-500.0,0.00017272,2]
[337711282,1725983441345,-500.0,0.00017272,2]
[337711283,1725983441355,-500.0,0.00017272,2]
[337711284,1725983441364,-500.0,0.00017272,2]
[337711285,1725983441374,-176.37822643,0.00017272,2]
[337711286,1725983441384,-500.0,0.00017272,2]
[337711287,1725983441394,-500.0,0.00017272,2]
[337711288,1725983441403,-500.0,0.00017272,2]
[337711289,1725983441413,-500.0,0.00017272,2]
[337711290,1725983441422,-576.08759873,0.00017272,2]
[337711291,1725983441432,-688.68,0.00017273,2]
[337711292,1725983441442,-500.0,0.00017273,2]
[337711293,1725983441452,-500.0,0.00017273,2]
[337711294,1725983441461,-500.0,0.00017273,2]
[337711295,1725983441470,-558.35165465,0.00017273,2]
[337711296,1725983441480,-500.0,0.00017273,2]
[337711297,1725983441490,-1078.27,0.00017273,2]
[337711298,1725983441503,-500.0,0.00017273,2]
[337711299,1725983441513,-556.61,0.00017273,2]
[337711300,1725983441523,-500.0,0.00017273,2]
[337711301,1725983441532,-500.0,0.00017273,2]
[337711302,1725983441542,-500.0,0.00017273,2]
[337711303,1725983441552,-500.0,0.00017273,2]
[337711304,1725983441562,-1291.66,0.00017273,2]
[337711305,1725983441572,-1155.41,0.00017273,2]
[337711306,1725983441582,-500.0,0.00017273,2]
[337711307,1725983441592,-500.0,0.00017273,2]
[337711308,1725983441602,-500.0,0.00017273,2]
[337711309,1725983441612,-500.0,0.00017273,2]
[337711310,1725983441622,-500.0,0.00017273,2]
[337711311,1725983441632,-500.0,0.00017273,2]
[337711312,1725983441642,-854.76,0.00017273,2]
[337711313,1725983441652,-2056.12,0.00017273,2]
[337711314,1725983441663,-809.21,0.00017273,2]
[337711315,1725983441674,-507.56,0.00017273,2]
[337711316,1725983441684,-1316.18,0.00017273,2]
[337711317,1725983441694,-500.0,0.00017273,2]
[337711318,1725983441705,-500.0,0.00017273,2]
[337711319,1725983441715,-814.16,0.00017273,2]
[337711320,1725983441724,-678.7,0.00017273,2]
[337711321,1725983441733,-1274.27,0.00017273,2]
[337711322,1725983441744,-500.0,0.00017273,2]
[337711323,1725983441761,-500.0,0.00017273,2]
[337711324,1725983441773,-1869.52,0.00017273,2]
[337711325,1725983441784,-510.1,0.00017273,2]
[337711326,1725983441794,-500.0,0.00017273,2]
[337711327,1725983441806,-3821.22,0.00017273,2]
[337711328,1725983441817,-506.48,0.00017273,2]
[337711329,1725983441826,-500.0,0.00017273,2]
[337711330,1725983441836,-500.0,0.00017273,2]
[337711331,1725983441847,-768.49,0.00017273,2]
[337711332,1725983441857,-1667.69,0.00017273,2]
[337711333,1725983441867,-733.63,0.00017273,2]
[337711334,1725983441876,-1419.3,0.00017273,2]
[337711335,1725983441887,-549.41,0.00017273,2]
[337711336,1725983441896,-500.0,0.00017273,2]
[337711337,1725983441906,-500.0,0.00017273,2]
[337711338,1725983441915,-500.0,0.00017273,2]
[337711339,1725983441925,-1371.62,0.00017273,2]
[337711340,1725983441935,-500.0,0.00017273,2]
[337711341,1725983441945,-500.0,0.00017273,2]
[337711342,1725983441955,-692.15,0.00017273,2]
[337711343,1725983441966,-500.0,0.00017273,2]
[337711344,1725983441975,-611.66,0.00017273,2]
[337711345,1725983441985,-1349.18,0.00017273,2]
[337711346,1725983441995,-500.0,0.00017273,2]
[337711347,1725983442007,-6308.56,0.00017273,2]
[337711348,1725983442017,-673.65,0.00017273,2]
[337711349,1725983442027,-1462.67,0.00017273,2]
[337711350,1725983442037,-910.74,0.00017273,2]
[337711351,1725983442048,-500.0,0.00017273,2]
[337711352,1725983442057,-500.0,0.00017273,2]
[337711353,1725983442067,-500.0,0.00017273,2]
[337711354,1725983442076,-1113.07,0.00017273,2]
[337711355,1725983442086,-500.0,0.00017273,2]
[337711356,1725983442096,-1192.29,0.00017273,2]
[337711357,1725983442105,-1378.05,0.00017273,2]
[337711358,1725983442116,-500.0,0.00017273,2]
[337711359,1725983442127,-1523.63,0.00017273,2]
[337711360,1725983442137,-500.0,0.00017273,2]
[337711361,1725983442148,-60652.85,0.00017273,2]
[337711362,1725983442158,-500.0,0.00017273,2]
[337711363,1725983442168,-35203.19,0.00017273,2]
[337711364,1725983442178,-573.12,0.00017273,2]
[337711365,1725983442188,-693.49,0.00017273,2]
[337711366,1725983442198,-500.0,0.00017273,2]
[337711367,1725983442207,-500.0,0.00017273,2]
[337711368,1725983442217,-500.0,0.00017273,2]
[337711369,1725983442226,-500.0,0.00017273,2]
[337711370,1725983442236,-198.070162,0.00017273,2]
[337711371,1725983442245,-500.0,0.00017273,2]
[337711372,1725983442258,-5597.81,0.00017273,2]
[337711373,1725983442268,-198.070162,0.00017273,2]
[337711374,1725983442277,-151.0,0.00017273,2]
[337711375,1725983442287,-151.0,0.00017273,2]
[337711376,1725983442297,-500.0,0.00017273,2]
[337711377,1725983442307,-500.0,0.00017273,2]
[337711378,1725983442317,-545.75,0.00017273,2]
[337711379,1725983442326,-500.0,0.00017273,2]
[337711380,1725983442338,-500.0,0.00017273,2]
[337711381,1725983442348,-500.0,0.00017273,2]
[337711382,1725983442358,-151.0,0.00017273,2]
[337711383,1725983442367,-671.68,0.00017273,2]
[337711384,1725983442377,-500.0,0.00017273,2]
[337711385,1725983442386,-151.0,0.00017273,2]
[337711386,1725983442395,-500.0,0.00017273,2]
[337711387,1725983442405,-500.0,0.00017273,2]
[337711388,1725983442414,-1768.02,0.00017273,2]
[337711389,1725983442424,-882.69,0.00017273,2]
[337711390,1725983442434,-151.0,0.00017273,2]
[337711391,1725983442444,-500.0,0.00017273,2]
[337711392,1725983442454,-642.06,0.00017273,2]
[337711393,1725983442464,-150.112233,0.000173,2]
[337711394,1725983442473,-150.112233,0.000173,2]
[337711395,1725983442482,-150.112233,0.000173,2]
[337711396,1725983442493,-150.112235,0.000173,2]
[337711397,1725983442504,-8869.46925062,0.00017328,2]
[337711398,1725983442514,-150.112233,0.000174,2]
[337711399,1725983442524,-150.112233,0.000174,2]
[337711400,1725983442534,-150.112233,0.000174,2]
[337711401,1725983442543,-150.112233,0.000174,2]
[337711402,1725983442554,-500.0,0.00017426,2]
[337711403,1725983442563,-500.0,0.00017426,2]
[337711404,1725983442573,-500.0,0.00017426,2]
[337711405,1725983442583,-500.0,0.00017427,2]
[337711406,1725983442592,-500.0,0.00017427,2]
[337711407,1725983442602,-500.0,0.00017427,2]
[337711408,1725983442613,-500.0,0.00017427,2]
[337711409,1725983442623,-372.56267105,0.00017427,2]
[337711410,1725983442634,-500.0,0.00017427,2]
[337711411,1725983442644,-500.0,0.00017427,2]
[337711412,1725983442654,-500.0,0.00017428,2]
[337711413,1725983442664,-551.1,0.00017428,2]
[337711414,1725983442674,-500.0,0.00017428,2]
[337711415,1725983442683,-433.81708806,0.00017428,2]
[337711416,1725983442693,-500.0,0.00017428,2]
[337711417,1725983442704,-502.07801065,0.00017428,2]
[337711418,1725983442716,-500.0,0.00017428,2]
[337711419,1725983442727,-509.6037881,0.00017428,2]
[337711420,1725983442737,-500.0,0.00017428,2]
[337711421,1725983442747,-500.0,0.00017428,2]
[337711422,1725983442759,-500.0,0.00017428,2]
[337711423,1725983442769,-515.52,0.00017428,2]
[337711424,1725983442782,-500.0,0.00017428,2]
[337711425,1725983442792,-500.0,0.00017428,2]
[337711426,1725983442803,-504.96329044,0.00017428,2]
[337711427,1725983442812,-500.0,0.00017428,2]
[337711428,1725983442824,-500.0,0.00017428,2]
[337711429,1725983442834,-500.0,0.00017428,2]
[337711430,1725983442844,-588.06716988,0.00017428,2]
[337711431,1725983442855,-500.0,0.00017428,2]
[337711432,1725983442864,-500.0,0.00017428,2]
[337711433,1725983442873,-500.0,0.00017428,2]
[337711435,1725983442883,-793.77,0.00017428,2]
[337711437,1725983442893,-500.0,0.00017428,2]
[337711441,1725983442903,-500.0,0.00017428,2]
[337711442,1725983442912,-703.26,0.00017428,2]
[337711443,1725983442923,-500.0,0.00017428,2]
[337711444,1725983442933,-500.0,0.00017428,2]
[337711445,1725983442943,-500.0,0.00017428,2]
[337711446,1725983442953,-821.05,0.00017428,2]
[337711447,1725983442962,-504.93052161,0.00017428,2]
[337711448,1725983442972,-833.42,0.00017428,2]
[337711449,1725983442982,-500.0,0.00017428,2]
[337711450,1725983442991,-1139.79,0.00017428,2]
[337711451,1725983443004,-500.0,0.00017428,2]
[337711452,1725983443015,-566.92,0.00017428,2]
[337711453,1725983443025,-501.30464746,0.00017428,2]
[337711454,1725983443034,-500.0,0.00017428,2]
[337711455,1725983443043,-607.18,0.00017428,2]
[337711456,1725983443053,-308.47973874,0.00017428,2]
[337711457,1725983443063,-500.0,0.00017428,2]
[337711459,1725983443072,-500.0,0.00017428,2]
[337711460,1725983443081,-500.0,0.00017428,2]
[337711461,1725983443091,-500.0,0.00017428,2]
[337711462,1725983443100,-502.31423615,0.00017428,2]
[337711463,1725983443110,-699.83,0.00017428,2]
[337711464,1725983443119,-500.0,0.00017428,2]
[337711465,1725983443129,-500.0,0.00017428,2]
[337711466,1725983443139,-2364.22,0.00017428,2]
[337711467,1725983443150,-500.0,0.00017428,2]
[337711468,1725983443159,-531.55186902,0.00017428,2]
[337711469,1725983443169,-500.0,0.00017428,2]
[337711470,1725983443178,-500.0,0.00017428,2]
[337711471,1725983443188,-500.0,0.00017428,2]
[337711472,1725983443197,-500.0,0.00017428,2]
[337711473,1725983443207,-500.0,0.00017428,2]
[337711474,1725983443217,-161.85674528,0.00017428,2]
[337711475,1725983443228,-505.15761073,0.00017428,2]
[337711476,1725983443238,-500.0,0.00017428,2]
[337711477,1725983443248,-500.0,0.00017428,2]
[337711478,1725983443262,-500.0,0.00017428,2]
[337711479,1725983443272,-500.0,0.00017428,2]
[337711480,1725983443282,-500.0,0.00017428,2]
[337711481,1725983443292,-576.58,0.00017428,2]
[337711482,1725983443301,-509.04,0.00017428,2]
[337711483,1725983443311,-196.82578599,0.00017428,2]
[337711484,1725983443322,-714.27,0.00017428,2]
[337711485,1725983443458,-641.62,0.00017428,2]
[337711486,1725983443468,-445.05,0.00017428,2]
[337711487,1725983443479,-500.0,0.00017428,2]
[337711488,1725983443489,-500.0,0.00017428,2]
[337711489,1725983443500,-500.0,0.00017429,2]
[337711490,1725983443510,-500.0,0.00017429,2]
[337711491,1725983443519,-500.0,0.00017429,2]
[337711492,1725983443529,-500.0,0.00017429,2]
[337711493,1725983443538,-483.53592386,0.00017429,2]
[337711494,1725983443549,-505.76296098,0.00017429,2]
[337711495,1725983443559,-500.0,0.00017429,2]
[337711496,1725983443571,-511.04696333,0.00017429,2]
[337711497,1725983443582,-500.0,0.00017429,2]
[337711498,1725983443592,-500.0,0.00017429,2]
[337711499,1725983443602,-500.0,0.00017429,2]
[337711500,1725983443612,-500.0,0.00017429,2]
[337711501,1725983443622,-672.12,0.00017429,2]
[337711502,1725983443631,-500.0,0.00017429,2]
[337711504,1725983443640,-502.75652234,0.00017429,2]
[337711506,1725983443650,-500.0,0.00017429,2]
[337711507,1725983443660,-500.0,0.00017429,2]
[337711508,1725983443671,-902.28,0.00017429,2]
[337711509,1725983443682,-500.0,0.00017429,2]
[337711510,1725983443693,-500.0,0.00017429,2]
[337711511,1725983443703,-1029.98,0.00017429,2]
[337711512,1725983443714,-1640.68,0.00017429,2]
[337711513,1725983443725,-500.0,0.00017429,2]
[337711514,1725983443734,-500.0,0.00017429,2]
[337711515,1725983443744,-503.68,0.00017429,2]
[337711516,1725983443757,-500.0,0.00017429,2]
[337711517,1725983443769,-500.0,0.00017429,2]
[337711518,1725983443783,-500.0,0.00017429,2]
[337711520,1725983443794,-500.0,0.00017429,2]
[337711522,1725983443805,-500.0,0.00017429,2]
[337711523,1725983443815,-645.6,0.00017429,2]
[337711524,1725983443825,-500.0,0.00017429,2]
[337711527,1725983443836,-586.12,0.00017429,2]
[337711528,1725983443847,-500.0,0.00017429,2]
[337711529,1725983443857,-505.55480534,0.00017429,2]
[337711531,1725983443866,-502.5778232,0.00017429,2]
[337711532,1725983443876,-500.0,0.00017429,2]
[337711533,1725983443885,-504.67577351,0.00017429,2]
[337711534,1725983443895,-500.0,0.00017429,2]
[337711535,1725983443905,-1093.86,0.00017429,2]
[337711536,1725983443915,-500.0,0.00017429,2]
[337711537,1725983443925,-502.88458984,0.00017429,2]
[337711538,1725983443935,-574.26,0.00017429,2]
[337711539,1725983443945,-500.0,0.00017429,2]
[337711540,1725983443955,-500.0,0.00017429,2]
[337711541,1725983443965,-500.0,0.00017429,2]
[337711542,1725983443974,-1206.68,0.00017429,2]
[337711543,1725983443984,-500.0,0.00017429,2]
[337711544,1725983443993,-500.0,0.00017429,2]
[337711545,1725983444005,-500.0,0.00017429,2]
[337711546,1725983444014,-500.0,0.00017429,2]
[337711547,1725983444024,-500.0,0.00017429,2]
[337711548,1725983444035,-500.0,0.00017429,2]
[337711549,1725983444044,-500.0,0.00017429,2]
[337711550,1725983444054,-500.0,0.00017429,2]
[337711551,1725983444064,-500.0,0.00017429,2]
[337711552,1725983444074,-500.0,0.00017429,2]
[337711553,1725983444083,-500.0,0.00017429,2]
[337711554,1725983444093,-500.0,0.00017429,2]
[337711555,1725983444103,-500.0,0.00017429,2]
[337711556,1725983444112,-500.0,0.00017429,2]
[337711557,1725983444123,-819.18,0.00017429,2]
[337711558,1725983444133,-500.0,0.00017429,2]
[337711559,1725983444143,-500.0,0.00017429,2]
[337711560,1725983444153,-500.0,0.00017429,2]
[337711561,1725983444163,-500.0,0.00017429,2]
[337711562,1725983444173,-500.0,0.00017429,2]
[337711563,1725983444183,-500.0,0.00017429,2]
[337711564,1725983444193,-632.04,0.00017429,2]
[337711565,1725983444204,-500.0,0.00017429,2]
[337711566,1725983444213,-741.48,0.00017429,2]
[337711567,1725983444222,-500.0,0.00017429,2]
[337711568,1725983444232,-500.0,0.00017429,2]
[337711569,1725983444241,-500.0,0.00017429,2]
[337711570,1725983444251,-802.11,0.00017429,2]
[337711571,1725983444260,-500.0,0.00017429,2]
[337711572,1725983444270,-500.0,0.00017429,2]
[337711573,1725983444281,-500.0,0.00017429,2]
[337711574,1725983444291,-500.0,0.00017429,2]
[337711575,1725983444300,-500.0,0.00017429,2]
[337711576,1725983444311,-500.0,0.00017429,2]
[337711577,1725983444321,-609.43039107,0.00017429,2]
[337711578,1725983444332,-500.0,0.00017429,2]
[337711579,1725983444342,-899.9,0.00017429,2]
[337711580,1725983444352,-500.0,0.00017429,2]
[337711581,1725983444361,-500.0,0.00017429,2]
[337711582,1725983444371,-811.72,0.00017429,2]
[337711583,1725983444380,-500.0,0.00017429,2]
[337711584,1725983444390,-500.0,0.00017429,2]
[337711585,1725983444399,-644.34,0.00017429,2]
[337711586,1725983444410,-500.0,0.00017429,2]
[337711587,1725983444420,-258.01623119,0.00017429,2]
[337711588,1725983444431,-582.39,0.00017429,2]
[337711589,1725983444440,-1521.2,0.00017429,2]
[337711590,1725983444451,-500.0,0.00017429,2]
[337711591,1725983444460,-576.62,0.00017429,2]
[337711592,1725983444470,-1643.91,0.00017429,2]
[337711593,1725983444480,-500.0,0.00017429,2]
[337711594,1725983444490,-500.0,0.00017429,2]
[337711595,1725983444501,-500.0,0.00017429,2]
[337711596,1725983444511,-500.0,0.00017429,2]
[337711597,1725983444520,-500.0,0.00017429,2]
[337711598,1725983444530,-1027.29,0.00017429,2]
[337711599,1725983444540,-509.98208732,0.00017429,2]
[337711600,1725983444550,-500.0,0.00017429,2]
[337711601,1725983444560,-500.0,0.00017429,2]
[337711602,1725983444570,-500.0,0.00017429,2]
[337711603,1725983444579,-500.0,0.00017429,2]
[337711604,1725983444589,-500.0,0.00017429,2]
[337711605,1725983444604,-500.0,0.00017429,2]
[337711606,1725983444622,-500.0,0.00017429,2]
[337711607,1725983444641,-716.12,0.00017429,2]
[337711608,1725983444656,-500.0,0.00017429,2]
[337711609,1725983444671,-719.16,0.00017429,2]
[337711610,1725983444688,-500.0,0.00017429,2]
[337711611,1725983444702,-585.78,0.00017429,2]
[337711612,1725983444721,-500.0,0.00017429,2]
[337711613,1725983444736,-388.6429923,0.00017429,2]
[337711614,1725983444751,-678.99,0.00017429,2]
[337711615,1725983444769,-1549.57,0.00017429,2]
[337711616,1725983444786,-500.0,0.00017429,2]
[337711617,1725983444799,-500.0,0.00017429,2]
[337711618,1725983444812,-3015.9,0.00017429,2]
[337711619,1725983444826,-779.5,0.00017429,2]
[337711620,1725983444841,-500.0,0.00017429,2]
[337711621,1725983444856,-573.3,0.00017429,2]
[337711622,1725983444873,-449.75899766,0.00017429,2]
[337711623,1725983444888,-633.23,0.00017429,2]
[337711624,1725983444901,-500.0,0.00017429,2]
[337711625,1725983444913,-1678.23,0.00017429,2]
[337711626,1725983444926,-500.0,0.00017429,2]
[337711627,1725983444943,-500.0,0.00017429,2]
[337711628,1725983444957,-1150.32,0.00017429,2]
[337711629,1725983444971,-500.0,0.00017429,2]
[337711630,1725983444986,-500.0,0.00017429,2]
[337711631,1725983444999,-1880.99,0.00017429,2]
[337711632,1725983445012,-500.0,0.00017429,2]
[337711633,1725983445025,-500.0,0.00017429,2]
[337711634,1725983445037,-500.0,0.00017429,2]
[337711635,1725983445050,-500.0,0.00017429,2]
[337711636,1725983445063,-500.0,0.00017429,2]
[337711637,1725983445075,-500.0,0.00017429,2]
[337711638,1725983445089,-500.0,0.00017429,2]
[337711639,1725983445101,-500.0,0.00017429,2]
[337711640,1725983445114,-500.0,0.00017429,2]
[337711641,1725983445127,-589.31,0.00017429,2]
[337711642,1725983445141,-151.0,0.00017429,2]
[337711643,1725983445154,-500.0,0.00017429,2]
[337711644,1725983445166,-151.0,0.00017429,2]
[337711645,1725983445179,-500.0,0.00017429,2]
[337711646,1725983445192,-500.0,0.00017429,2]
[337711647,1725983445205,-1097.93,0.00017429,2]
[337711648,1725983445219,-721.51,0.00017429,2]
[337711649,1725983445232,-500.0,0.00017429,2]
[337711650,1725983445247,-500.0,0.00017429,2]
[337711651,1725983445261,-564.81,0.00017429,2]
[337711652,1725983445275,-901.97,0.00017429,2]
[337711653,1725983445287,-500.0,0.00017429,2]
[337711654,1725983445301,-500.0,0.00017429,2]
[337711655,1725983445313,-500.0,0.00017429,2]
[337711656,1725983445327,-151.0,0.00017429,2]
[337711657,1725983445341,-906.19,0.00017429,2]
[337711658,1725983445353,-1078.03,0.00017429,2]
[337711659,1725983445367,-500.0,0.00017429,2]
[337711660,1725983445379,-500.0,0.00017429,2]
[337711661,1725983445392,-500.0,0.00017429,2]
[337711662,1725983445405,-505.7,0.00017429,2]
[337711663,1725983445417,-151.0,0.00017429,2]
[337711664,1725983445430,-501.18030637,0.00017429,2]
[337711665,1725983445443,-1633.44,0.00017429,2]
[337711666,1725983445456,-500.0,0.00017429,2]
[337711667,1725983445469,-500.0,0.00017429,2]
[337711668,1725983445483,-500.0,0.00017429,2]
[337711669,1725983445496,-1060.19,0.00017429,2]
[337711670,1725983445511,-4190.67,0.00017429,2]
[337711671,1725983445524,-613.12,0.00017429,2]
[337711672,1725983445536,-544.08118826,0.00017429,2]
[337711673,1725983445549,-500.0,0.00017429,2]